bitfinex/quotes_BTCUSD_20240101
["timestamp","ask_amount","ask_price","bid_price","bid_amount"]
[1704118385044,0.002,42709.0,42708.0,0.04682]
[1704118386004,0.002,42709.0,42708.0,0.515116]
[1704118386385,0.05600117,42711.0,42708.0,0.515116]
[1704118386781,0.002,42709.0,42708.0,0.528116]
[1704118387401,0.001,42709.0,42708.0,0.521116]
[1704118387779,0.001,42709.0,42708.0,0.525116]
[1704118388005,0.001,42709.0,42708.0,0.519116]
[1704118388206,0.05600117,42711.0,42708.0,0.519116]
[1704118388443,0.05600117,42711.0,42708.0,0.522116]
[1704118388670,0.05600117,42711.0,42708.0,0.519116]
[1704118389045,0.001,42709.0,42708.0,0.521116]
[1704118389246,0.05600117,42711.0,42708.0,0.515116]
[1704118389445,0.001,42709.0,42708.0,0.522116]
[1704118389647,0.001,42709.0,42708.0,0.525116]
[1704118390031,0.05600117,42711.0,42708.0,0.515116]
[1704118390453,0.05600117,42711.0,42708.0,0.519116]
[1704118391272,0.001,42709.0,42708.0,0.525116]
[1704118391460,0.05600117,42711.0,42708.0,0.519116]
[1704118391866,0.05600117,42711.0,42708.0,0.522116]
[1704118392178,0.05600117,42711.0,42708.0,0.519116]
[1704118392397,0.05600117,42711.0,42708.0,0.515116]
[1704118392612,0.002,42709.0,42708.0,0.528116]
[1704118392828,0.001,42709.0,42708.0,0.522116]
[1704118393210,0.05600117,42711.0,42708.0,0.003]
[1704118393433,0.05600117,42711.0,42709.0,0.04682]
[1704118395489,0.05600117,42711.0,42709.0,0.05082]
[1704118395926,0.05600117,42711.0,42709.0,0.05382]
[1704118398456,0.05600117,42711.0,42709.0,0.04959069]
[1704118401871,0.05600117,42710.0,42709.0,0.04959069]
[1704118403188,0.05600117,42710.0,42709.0,0.004]
[1704118404563,0.05600117,42710.0,42709.0,0.04736138]
[1704118404739,0.06334512,42710.0,42709.0,0.05236138]
[1704118409133,0.1314292,42710.0,42709.0,0.05236138]
[1704118410636,0.1314292,42710.0,42709.0,0.014]
[1704118411268,0.0614292,42710.0,42709.0,0.014]
[1704118411705,0.14000293,42710.0,42709.0,0.014]
[1704118412297,0.11206501,42710.0,42709.0,0.014]
[1704118415974,0.11206501,42711.0,42709.0,0.014]
[1704118416177,0.34528212,42711.0,42709.0,0.014]
[1704118416690,0.11206501,42710.0,42709.0,0.014]
[1704118416893,0.34528212,42711.0,42709.0,0.009]
[1704118417090,0.11206501,42710.0,42709.0,0.009]
[1704118417341,0.11206501,42710.0,42709.0,0.012]
[1704118417566,0.11206501,42710.0,42709.0,0.009]
[1704118417771,0.11206501,42710.0,42709.0,0.005]
[1704118418200,0.11206501,42710.0,42709.0,0.009]
[1704118418630,0.37322004,42711.0,42709.0,0.005]
[1704118419046,0.11308179,42710.0,42709.0,0.01]
[1704118419510,0.11208179,42710.0,42709.0,0.005]
[1704118419890,0.11208179,42710.0,42709.0,0.009]
[1704118420186,0.11208179,42710.0,42709.0,0.004]
[1704118420405,0.11208179,42710.0,42709.0,0.007]
[1704118420617,0.11208482,42710.0,42709.0,0.004]
[1704118421236,0.11208482,42710.0,42705.0,0.05682]
[1704118421455,0.05604225,42708.0,42705.0,0.05682]
[1704118421869,0.05604225,42707.0,42705.0,0.05682]
[1704118422506,0.05604225,42707.0,42705.0,0.05182]
[1704118422954,0.05604225,42707.0,42705.0,0.04682]
[1704118423157,0.05604225,42708.0,42705.0,0.05682]
[1704118423334,0.05704225,42708.0,42705.0,0.06482]
[1704118423537,0.05704225,42708.0,42705.0,0.05482]
[1704118423692,0.05604225,42708.0,42704.0,0.04682]
[1704118423892,0.05604225,42707.0,42704.0,0.04682]
[1704118424327,0.05604225,42707.0,42702.0,0.2953]
[1704118424328,0.05804225,42707.0,42706.0,0.04682]
[1704118424729,0.05704225,42707.0,42706.0,0.04682]
[1704118424909,0.05604225,42707.0,42706.0,0.04682]
[1704118425114,0.05704225,42707.0,42706.0,0.04682]
[1704118425305,0.05704225,42707.0,42704.0,0.01]
[1704118425306,0.05704225,42707.0,42705.0,0.04682]
[1704118425513,0.05604225,42707.0,42705.0,0.04682]
[1704118425972,0.11308482,42707.0,42706.0,0.01]
[1704118427460,0.11408482,42707.0,42706.0,0.019]
[1704118427854,0.11308482,42707.0,42706.0,0.009]
[1704118428074,0.11408482,42707.0,42706.0,0.009]
[1704118429128,0.11308482,42707.0,42706.0,0.009]
[1704118429718,0.11408482,42707.0,42706.0,0.019]
[1704118430135,0.002,42707.0,42706.0,0.019]
[1704118430759,0.08600539,42707.0,42706.0,0.019]
[1704118441683,0.08598093,42707.0,42706.0,0.019]
[1704118441884,0.002,42707.0,42706.0,0.019]
[1704118442306,0.08598272,42707.0,42706.0,0.009]
[1704118442529,0.001,42707.0,42706.0,0.009]
[1704118443287,0.002,42707.0,42706.0,0.016]
[1704118443534,0.11308482,42707.0,42706.0,0.007]
[1704118443756,0.11608482,42707.0,42706.0,0.007]
[1704118444005,0.11308482,42707.0,42706.0,0.007]
[1704118444478,0.11608482,42707.0,42706.0,0.007]
[1704118445540,0.11508482,42707.0,42700.0,0.04682]
[1704118445754,0.0559916,42704.0,42701.0,0.04682]
[1704118446781,0.0559916,42704.0,42699.0,0.04682]
[1704118446998,0.43841711,42703.0,42699.0,0.04682]
[1704118447194,0.43841711,42703.0,42701.0,0.002]
[1704118447618,0.43841711,42703.0,42701.0,0.05182]
[1704118447812,0.43841711,42703.0,42701.0,0.04982]
[1704118448632,0.43841711,42703.0,42699.0,0.003]
[1704118449044,0.43841711,42703.0,42701.0,0.004]
[1704118449267,0.49440871,42703.0,42701.0,0.004]
[1704118449489,0.49440871,42703.0,42697.0,0.04682]
[1704118449683,0.0559916,42702.0,42697.0,0.04682]
[1704118449894,0.28920871,42702.0,42699.0,0.004]
[1704118450105,0.23321711,42702.0,42699.0,0.004]
[1704118450321,0.28920871,42702.0,42701.0,0.003]
[1704118450527,0.28920871,42702.0,42697.0,0.04682]
[1704118450747,0.28920871,42702.0,42697.0,0.05082]
[1704118450953,0.29020871,42702.0,42697.0,0.05582]
[1704118451168,0.23321711,42702.0,42697.0,0.05082]
[1704118451381,0.23321711,42702.0,42701.0,0.05182]
[1704118451382,0.23421711,42702.0,42701.0,0.05182]
[1704118451596,0.001,42702.0,42701.0,0.05182]
[1704118451807,0.0559916,42703.0,42701.0,0.04682]
[1704118452039,0.001,42702.0,42701.0,0.04682]
[1704118452674,0.002,42702.0,42701.0,0.05282]
[1704118453792,0.001,42702.0,42701.0,0.05282]
[1704118453994,0.002,42702.0,42701.0,0.05782]
[1704118464822,0.0579916,42702.0,42701.0,0.05782]
[1704118466196,0.002,42702.0,42701.0,0.05782]
[1704118466401,0.05800396,42702.0,42701.0,0.05782]
[1704118471449,0.08400595,42702.0,42701.0,0.05782]
[1704118472304,0.22480595,42703.0,42701.0,0.05782]
[1704118472511,0.08400595,42702.0,42701.0,0.05782]
[1704118473154,0.08400595,42702.0,42701.0,0.05182]
[1704118474625,0.08400595,42702.0,42701.0,0.05582]
[1704118475038,0.08400595,42702.0,42701.0,0.05182]
[1704118475443,0.08500595,42702.0,42701.0,0.05782]
[1704118481668,0.23421711,42702.0,42701.0,0.05782]
[1704118482287,0.37422703,42702.0,42701.0,0.011]
[1704118483136,0.70257911,42702.0,42701.0,0.011]
[1704118484691,0.70157911,42702.0,42701.0,0.005]
[1704118484898,0.70457911,42702.0,42693.0,0.04682]
[1704118485114,0.05603791,42696.0,42693.0,0.04682]
[1704118485321,0.05603791,42697.0,42693.0,0.04682]
[1704118485522,0.26403791,42697.0,42693.0,0.04682]
[1704118486764,0.26403791,42697.0,42693.0,0.05682]
[1704118487602,0.26403791,42697.0,42693.0,0.05782]
[1704118487806,0.26403791,42697.0,42693.0,0.04682]
[1704118487996,0.26403791,42697.0,42693.0,0.04782]
[1704118488317,0.05603791,42697.0,42693.0,0.04782]
[1704118488460,0.05603791,42697.0,42693.0,0.04682]
[1704118488698,0.05603791,42697.0,42693.0,0.04982]
[1704118489104,0.05603791,42697.0,42693.0,0.05182]
[1704118489314,0.05603791,42698.0,42693.0,0.06182]
[1704118489544,0.28925502,42698.0,42693.0,0.06182]
[1704118490106,0.28925502,42698.0,42693.0,0.05882]
[1704118490305,0.28925502,42698.0,42693.0,0.05682]
[1704118490660,0.28925502,42698.0,42693.0,0.05782]
[1704118490837,0.05603791,42698.0,42693.0,0.05782]
[1704118491079,0.05603791,42698.0,42694.0,0.10346]
[1704118491240,0.05703791,42698.0,42694.0,0.10346]
[1704118491457,0.05703791,42698.0,42695.0,0.0465]
[1704118491658,0.05603791,42698.0,42695.0,0.0465]
[1704118492616,0.05603791,42698.0,42695.0,0.09332]
[1704118493036,0.05603791,42698.0,42697.0,0.04682]
[1704118494069,0.05603791,42698.0,42696.0,0.04682]
[1704118494276,0.05703791,42698.0,42697.0,0.05182]
[1704118494542,0.05703791,42698.0,42697.0,0.05782]
[1704118494543,0.05803791,42698.0,42697.0,0.05782]
[1704118494975,0.05703791,42698.0,42697.0,0.05182]
[1704118495330,0.05703791,42698.0,42697.0,0.04682]
[1704118496674,0.001,42698.0,42697.0,0.04682]
[1704118496887,0.05603791,42700.0,42697.0,0.04682]
[1704118497132,0.001,42698.0,42697.0,0.2]
[1704118497335,0.002,42698.0,42697.0,0.25282]
[1704118497548,0.001,42698.0,42697.0,0.25282]
[1704118497775,0.001,42698.0,42697.0,0.25182]
[1704118498215,0.001,42698.0,42697.0,0.25482]
[1704118498848,0.001,42698.0,42697.0,0.25182]
[1704118499024,0.002,42698.0,42697.0,0.25782]
[1704118503045,0.002,42698.0,42697.0,0.05782]
[1704118503349,0.002,42698.0,42697.0,0.25782]
[1704118503606,0.002,42698.0,42697.0,0.31902]
[1704118504303,0.002,42698.0,42697.0,0.41902]
[1704118507589,0.002,42698.0,42697.0,0.11902]
[1704118507794,0.002,42698.0,42697.0,0.05782]
[1704118513644,0.002,42698.0,42697.0,0.31746]
[1704118516989,0.002,42698.0,42697.0,0.895876]
[1704118517196,0.002,42698.0,42697.0,1.12909311]
[1704118517808,0.001,42698.0,42697.0,1.12309311]
[1704118518229,0.25931309,42706.0,42702.0,0.04682]
[1704118518637,0.05601309,42707.0,42702.0,0.04682]
[1704118518845,0.26791309,42707.0,42702.0,0.04682]
[1704118519475,0.26791309,42707.0,42701.0,0.04682]
[1704118519678,0.05601309,42706.0,42701.0,0.04682]
[1704118520090,0.26791309,42707.0,42701.0,0.04682]
[1704118520473,0.26791309,42707.0,42702.0,0.003]
[1704118520670,0.26791309,42707.0,42701.0,0.04682]
[1704118521047,0.26791309,42707.0,42701.0,0.25382]
[1704118521248,0.26791309,42707.0,42701.0,0.25082]
[1704118521507,0.26791309,42707.0,42702.0,0.001]
[1704118522730,0.26791309,42707.0,42701.0,0.24682]
[1704118522938,0.26791309,42707.0,42701.0,0.24882]
[1704118523147,0.26791309,42707.0,42701.0,0.29814]
[1704118523323,0.26791309,42707.0,42701.0,0.29614]
[1704118523849,0.26791309,42707.0,42702.0,0.003]
[1704118524098,0.26791309,42707.0,42702.0,0.002]
[1704118524326,0.26791309,42707.0,42701.0,0.24782]
[1704118524811,0.2119,42707.0,42701.0,0.24782]
[1704118525053,0.2119,42707.0,42701.0,0.24982]
[1704118526190,0.26791309,42707.0,42701.0,0.04982]
[1704118526415,0.26791309,42707.0,42701.0,0.04882]
[1704118526873,0.26791309,42707.0,42702.0,0.001]
[1704118527139,0.26791309,42707.0,42701.0,0.04882]
[1704118527355,0.26791309,42707.0,42701.0,0.04982]
[1704118527583,0.5011302,42707.0,42701.0,0.04982]
[1704118527819,0.468335,42705.0,42701.0,0.04782]
[1704118528043,0.468335,42705.0,42702.0,0.002]
[1704118528908,0.468335,42705.0,42701.0,0.001]
[1704118529177,0.196,42704.0,42701.0,0.001]
[1704118529607,0.196,42704.0,42701.0,0.04682]
[1704118530032,0.196,42704.0,42702.0,0.004]
[1704118530247,0.196,42704.0,42701.0,0.04882]
[1704118530464,0.197,42704.0,42701.0,0.05482]
[1704118530679,0.197,42704.0,42701.0,0.05282]
[1704118531106,0.198,42704.0,42701.0,0.05882]
[1704118531757,0.128,42704.0,42701.0,0.05882]
[1704118539563,0.128,42704.0,42702.0,0.04818]
[1704118539788,0.002,42704.0,42703.0,0.04682]
[1704118540691,0.001,42704.0,42703.0,0.04682]
[1704118541103,0.002,42704.0,42703.0,0.05282]
[1704118542352,0.001,42704.0,42703.0,0.05282]
[1704118542758,0.002,42704.0,42703.0,0.05882]
[1704118546477,0.002,42704.0,42703.0,0.11162]
[1704118547273,0.002,42704.0,42703.0,0.05882]
[1704118547806,0.002,42704.0,42703.0,0.906011]
[1704118550415,0.002,42704.0,42703.0,0.806011]
[1704118550635,0.002,42704.0,42703.0,0.906011]
[1704118553224,0.002,42704.0,42703.0,0.43766]
[1704118553504,0.002,42704.0,42703.0,0.906011]
[1704118553709,0.002,42704.0,42703.0,0.606011]
[1704118553910,0.002,42704.0,42703.0,0.527171]
[1704118554112,0.002,42704.0,42703.0,0.573431]
[1704118554529,0.002,42704.0,42703.0,0.773431]
[1704118556801,0.002,42704.0,42703.0,0.30508]
[1704118557013,0.002,42704.0,42703.0,0.773431]
[1704118564475,0.002,42704.0,42703.0,0.793831]
[1704118580434,0.002,42704.0,42703.0,1.13704811]
[1704118580673,0.002,42704.0,42703.0,1.28614811]
[1704118582173,0.001,42704.0,42703.0,1.28014811]
[1704118582386,0.001,42704.0,42703.0,1.28714811]
[1704118582387,0.002,42704.0,42703.0,1.28714811]
[1704118582626,0.001,42704.0,42703.0,1.28014811]
[1704118582844,0.2023,42713.0,42710.0,0.04682]
[1704118583266,0.08052602,42715.0,42710.0,0.04682]
[1704118583468,0.24671309,42714.0,42712.0,0.04682]
[1704118583672,0.08061023,42715.0,42712.0,0.04682]
[1704118583886,0.27131023,42715.0,42712.0,0.04682]
[1704118584314,0.27131023,42715.0,42711.0,0.04682]
[1704118585404,0.0560973,42714.0,42711.0,0.04682]
[1704118585623,0.0560973,42714.0,42712.0,0.05182]
[1704118585854,0.0560973,42713.0,42712.0,0.04982]
[1704118586084,0.0560973,42713.0,42711.0,0.001]
[1704118586085,0.08414595,42713.0,42711.0,0.001]
[1704118586337,0.08414595,42713.0,42709.0,0.04682]
[1704118586338,0.08414595,42712.0,42709.0,0.04682]
[1704118586505,0.08414595,42712.0,42706.0,0.04682]
[1704118586731,0.05610379,42710.0,42706.0,0.04682]
[1704118586955,0.24150379,42711.0,42706.0,0.04682]
[1704118587174,0.05610379,42710.0,42706.0,0.04682]
[1704118587980,0.02234179,42709.0,42706.0,0.04682]
[1704118588611,0.02234179,42709.0,42706.0,0.05282]
[1704118588814,0.02234179,42709.0,42706.0,0.06082]
[1704118589240,0.02234179,42709.0,42706.0,0.04682]
[1704118589450,0.02434179,42709.0,42706.0,0.06682]
[1704118591621,0.01044558,42710.0,42706.0,0.06682]
[1704118592891,0.01044558,42710.0,42706.0,0.04682]
[1704118593308,0.01244558,42710.0,42706.0,0.06382]
[1704118593974,0.31936306,42710.0,42706.0,0.06382]
[1704118594208,0.468307,42707.0,42706.0,0.06382]
[1704118594469,0.31736306,42709.0,42706.0,0.06382]
[1704118594913,0.468297,42708.0,42706.0,0.05482]
[1704118595145,0.70151411,42708.0,42701.0,0.05682]
[1704118595377,0.2012,42707.0,42706.0,0.004]
[1704118595600,0.2012,42707.0,42701.0,0.05682]
[1704118595823,0.2012,42707.0,42701.0,0.04682]
[1704118595824,0.29033796,42707.0,42701.0,0.04682]
[1704118596060,0.52355507,42707.0,42701.0,0.04682]
[1704118596731,0.52355507,42707.0,42701.0,0.04782]
[1704118597226,0.08414595,42705.0,42701.0,0.003]
[1704118597452,0.08414595,42703.0,42701.0,0.003]
[1704118597677,0.08414595,42702.0,42701.0,0.003]
[1704118598189,0.23321711,42703.0,42701.0,0.003]
[1704118598403,0.23321711,42703.0,42698.0,0.05682]
[1704118598633,0.31736306,42703.0,42701.0,0.003]
[1704118598865,0.31736306,42703.0,42701.0,0.002]
[1704118599118,0.31736306,42703.0,42698.0,0.05682]
[1704118599119,0.23321711,42703.0,42698.0,0.05682]
[1704118599346,0.001,42702.0,42698.0,0.05682]
[1704118599565,0.23421711,42703.0,42698.0,0.05682]
[1704118599801,0.23621711,42703.0,42698.0,0.05682]
[1704118600037,0.23621711,42703.0,42698.0,0.19522999]
[1704118600247,0.003,42703.0,42699.0,0.09332]
[1704118600464,0.002,42703.0,42699.0,0.561714]
[1704118600885,0.1897,42704.0,42701.0,0.04682]
[1704118601321,0.001,42703.0,42701.0,0.04682]
[1704118601533,0.1897,42704.0,42701.0,0.04682]
[1704118602392,0.001,42703.0,42701.0,0.05382]
[1704118602604,0.001,42703.0,42701.0,0.59623353]
[1704118602814,0.05610016,42706.0,42701.0,0.59623353]
[1704118602815,0.187,42706.0,42702.0,0.09938]
[1704118603450,0.187,42706.0,42702.0,0.567739]
[1704118603675,0.187,42706.0,42704.0,0.04682]
[1704118605190,0.05610016,42709.0,42704.0,0.04882]
[1704118605439,0.187,42708.0,42704.0,0.04882]
[1704118606369,0.187,42708.0,42704.0,0.04682]
[1704118606573,0.187,42708.0,42703.0,0.04682]
[1704118607129,0.24310016,42708.0,42703.0,0.04682]
[1704118607323,0.187,42708.0,42703.0,0.04682]
[1704118607822,0.188,42708.0,42703.0,0.04682]
[1704118608567,0.187,42708.0,42703.0,0.09182]
[1704118609458,0.188,42708.0,42703.0,0.09182]
[1704118609661,0.188,42708.0,42703.0,0.09482]
[1704118610429,0.188,42708.0,42703.0,0.04982]
[1704118610687,0.187,42708.0,42703.0,0.04982]
[1704118610900,0.24310016,42708.0,42703.0,0.05182]
[1704118611116,0.24310016,42708.0,42703.0,0.0979]
[1704118611341,0.24310016,42708.0,42703.0,0.05182]
[1704118612003,0.187,42708.0,42703.0,0.05182]
[1704118613124,0.187,42708.0,42703.0,0.09904]
[1704118613377,0.24310016,42708.0,42703.0,0.09904]
[1704118613635,0.187,42708.0,42705.0,0.04682]
[1704118614461,0.24310016,42708.0,42705.0,0.04682]
[1704118614665,0.24310016,42708.0,42706.0,0.04682]
[1704118614869,0.187,42708.0,42706.0,0.04682]
[1704118615075,0.24310016,42708.0,42706.0,0.04682]
[1704118615688,0.24310016,42708.0,42705.0,0.002]
[1704118616295,0.24310016,42708.0,42706.0,0.04682]
[1704118617473,0.24310016,42708.0,42706.0,0.002]
[1704118618142,0.24310016,42708.0,42706.0,0.05182]
[1704118618788,0.24309967,42708.0,42706.0,0.05182]
[1704118630231,0.05609967,42707.0,42706.0,0.05182]
[1704118630664,0.05609967,42708.0,42706.0,0.05182]
[1704118630881,0.05609967,42710.0,42707.0,0.08668404]
[1704118631100,0.05609967,42711.0,42707.0,0.08668404]
[1704118631310,0.05609967,42711.0,42707.0,0.13810404]
[1704118631524,0.05609967,42712.0,42708.0,0.1]
[1704118631738,0.05609967,42712.0,42708.0,0.1519]
[1704118632372,0.003,42711.0,42709.0,0.04682]
[1704118632592,0.001,42711.0,42709.0,0.09308]
[1704118632830,0.001,42711.0,42709.0,0.04682]
[1704118633469,0.05609967,42712.0,42709.0,0.04682]
[1704118633886,0.05909967,42712.0,42709.0,0.04682]
[1704118634098,0.05909967,42712.0,42709.0,0.0956]
[1704118634308,0.05609967,42712.0,42710.0,0.10555409]
[1704118635159,0.05609967,42712.0,42710.0,0.15115409]
[1704118635381,0.05609967,42714.0,42710.0,0.25115409]
[1704118635589,0.05609967,42715.0,42710.0,0.25315409]
[1704118635807,0.05609967,42715.0,42710.0,0.25415409]
[1704118636100,0.05609967,42715.0,42710.0,0.43565409]
[1704118636307,0.05609967,42715.0,42710.0,0.39005409]
[1704118636719,0.05609967,42715.0,42710.0,0.38805409]
[1704118637143,0.001,42714.0,42710.0,0.38805409]
[1704118637575,0.05609967,42715.0,42710.0,0.38705409]
[1704118637989,0.06309967,42715.0,42710.0,0.38705409]
[1704118638195,0.05909967,42715.0,42710.0,0.38705409]
[1704118638420,0.002,42714.0,42710.0,0.38705409]
[1704118638605,0.003,42714.0,42710.0,0.43223409]
[1704118638809,0.001,42714.0,42710.0,0.43223409]
[1704118639014,0.001,42714.0,42711.0,0.04682]
[1704118639848,0.05609967,42716.0,42711.0,0.04682]
[1704118640255,0.05609967,42716.0,42711.0,0.23002]
[1704118640697,0.002,42714.0,42711.0,0.23002]
[1704118640881,0.003,42715.0,42711.0,0.23002]
[1704118641242,0.05604453,42716.0,42711.0,0.23102]
[1704118641446,0.05604453,42716.0,42711.0,0.23202]
[1704118642025,0.05604453,42716.0,42711.0,0.23602]
[1704118642233,0.05604453,42716.0,42711.0,0.23202]
[1704118642413,0.05604453,42716.0,42711.0,0.23302]
[1704118644539,0.24564453,42717.0,42711.0,0.23302]
[1704118645185,0.05604453,42716.0,42711.0,0.23302]
[1704118646665,0.24564453,42717.0,42711.0,0.23302]
[1704118646879,0.24564453,42717.0,42711.0,0.23002]
[1704118647094,0.1906,42717.0,42711.0,0.23002]
[1704118647325,0.2456393,42717.0,42711.0,0.23002]
[1704118647539,0.0560393,42716.0,42711.0,0.23002]
[1704118647751,0.0560393,42716.0,42711.0,0.23102]
[1704118647985,0.0560393,42716.0,42711.0,0.23002]
[1704118648197,0.2466393,42717.0,42711.0,0.23002]
[1704118648408,0.0560393,42716.0,42711.0,0.23002]
[1704118648650,0.2456393,42717.0,42711.0,0.23002]
[1704118648874,0.2456393,42717.0,42711.0,0.23102]
[1704118649651,0.2456393,42717.0,42711.0,0.23302]
[1704118650047,0.2456393,42717.0,42711.0,0.23102]
[1704118650508,0.2456393,42717.0,42711.0,0.23002]
[1704118651354,0.2466393,42717.0,42711.0,0.23002]
[1704118651876,0.1766393,42717.0,42711.0,0.23002]
[1704118652053,0.0560393,42716.0,42711.0,0.23002]
[1704118653375,0.0560393,42716.0,42711.0,0.23202]
[1704118653761,0.1756393,42717.0,42711.0,0.23202]
[1704118654171,0.1756393,42717.0,42711.0,0.23302]
[1704118654587,0.0560393,42716.0,42711.0,0.23102]
[1704118655009,0.0560393,42716.0,42711.0,0.23002]
[1704118656846,0.0560393,42716.0,42711.0,0.23202]
[1704118657200,0.0560393,42716.0,42711.0,0.23302]
[1704118660437,0.0560393,42716.0,42711.0,0.33302]
[1704118668228,0.20365895,42717.0,42711.0,0.33302]
[1704118668229,0.0560393,42715.0,42711.0,0.33302]
[1704118669092,0.0560393,42715.0,42711.0,0.33102]
[1704118669539,0.0560393,42715.0,42711.0,0.33402]
[1704118670573,0.0560393,42715.0,42711.0,0.33302]
[1704118671209,0.0560393,42715.0,42711.0,0.33502]
[1704118671987,0.0560393,42715.0,42713.0,0.04682]
[1704118672192,0.0560393,42714.0,42713.0,0.04682]
[1704118674045,0.08405895,42715.0,42713.0,0.04882]
[1704118674253,0.08405895,42714.0,42713.0,0.002]
[1704118674489,0.08405895,42714.0,42712.0,0.04682]
[1704118674668,0.05609969,42713.0,42712.0,0.04682]
[1704118675662,0.05609969,42713.0,42712.0,0.05182]
[1704118675870,0.08405895,42714.0,42712.0,0.05182]
[1704118676073,0.05611355,42713.0,42712.0,0.05182]
[1704118676245,0.08405895,42713.0,42712.0,0.04682]
[1704118676855,0.08405895,42713.0,42712.0,0.05182]
[1704118677052,0.08505895,42713.0,42712.0,0.05782]
[1704118677239,0.001,42713.0,42712.0,0.05782]
[1704118677663,0.08521137,42713.0,42712.0,0.05782]
[1704118678093,0.001,42713.0,42712.0,0.05782]
[1704118678880,0.11307965,42713.0,42712.0,0.05782]
[1704118692703,0.001,42713.0,42712.0,0.05782]
[1704118696364,0.11307965,42713.0,42712.0,0.05782]
[1704118697564,0.001,42713.0,42712.0,0.05782]
[1704118703049,0.11307965,42713.0,42712.0,0.05782]
[1704118704798,0.001,42713.0,42712.0,0.05782]
[1704118705361,0.14130669,42713.0,42712.0,0.05782]
[1704118705576,0.1413078,42713.0,42712.0,0.05782]
[1704118705973,0.14130878,42713.0,42712.0,0.05782]
[1704118706174,0.14130878,42713.0,42712.0,0.011]
[1704118711898,0.14130878,42713.0,42712.0,1.011]
[1704118712183,0.07130878,42713.0,42712.0,1.011]
[1704118713236,0.491455,42715.0,42712.0,1.011]
[1704118713449,0.72467211,42715.0,42712.0,1.011]
[1704118713917,0.71223211,42715.0,42712.0,1.011]
[1704118714102,0.11223724,42713.0,42712.0,1.011]
[1704118714318,0.11223724,42713.0,42712.0,1.006]
[1704118714529,0.11223724,42713.0,42712.0,1.04682]
[1704118714759,0.11223724,42713.0,42712.0,1.04882]
[1704118714993,0.11223724,42713.0,42712.0,1.04682]
[1704118715226,0.11223724,42713.0,42712.0,1.05482]
[1704118715692,0.11223724,42713.0,42712.0,1.05182]
[1704118715913,0.11323724,42713.0,42712.0,1.05782]
[1704118717073,0.11323724,42713.0,42712.0,1.13410963]
[1704118717074,0.001,42713.0,42712.0,1.13410963]
[1704118717477,0.08518351,42713.0,42712.0,1.13410963]
[1704118717679,0.08518351,42713.0,42712.0,1.05782]
[1704118720101,0.001,42713.0,42712.0,1.05782]
[1704118721303,0.11323724,42713.0,42712.0,1.05782]
[1704118722535,0.001,42713.0,42712.0,1.05782]
[1704118724554,0.11323724,42713.0,42712.0,1.05782]
[1704118725004,0.001,42713.0,42712.0,1.05782]
[1704118725660,0.11323724,42713.0,42712.0,1.05782]
[1704118725872,0.001,42713.0,42712.0,1.05782]
[1704118726986,0.11323724,42713.0,42712.0,1.05782]
[1704118728400,0.001,42713.0,42712.0,1.05782]
[1704118729066,0.11323724,42713.0,42712.0,1.05782]
[1704118732988,0.14728136,42713.0,42712.0,1.05782]
[1704118736967,0.14130984,42713.0,42712.0,1.05782]
[1704118749491,0.001,42713.0,42712.0,1.05782]
[1704118749959,0.11322272,42713.0,42712.0,1.05782]
[1704118750406,0.001,42713.0,42712.0,1.05782]
[1704118750837,0.11322,42713.0,42712.0,1.05782]
[1704118753439,0.001,42713.0,42712.0,1.05782]
[1704118753873,0.11322436,42713.0,42712.0,1.05782]
[1704118754540,0.001,42713.0,42712.0,1.05782]
[1704118754951,0.11322483,42713.0,42712.0,1.05782]
[1704118768414,0.001,42713.0,42712.0,1.05782]
[1704118770610,0.08517078,42713.0,42712.0,1.05782]
[1704118772324,0.01517078,42713.0,42712.0,1.05782]
[1704118774295,0.11222483,42715.0,42712.0,1.05782]
[1704118774669,0.05610869,42713.0,42712.0,1.05782]
[1704118775139,0.05610869,42713.0,42712.0,1.05182]
[1704118775361,0.05610869,42713.0,42712.0,1.05482]
[1704118775776,0.05610869,42713.0,42712.0,1.05182]
[1704118777197,0.05710869,42713.0,42712.0,1.05782]
[1704118789695,0.001,42713.0,42712.0,1.05782]
[1704118808205,0.11322483,42713.0,42712.0,1.05782]
[1704118808639,0.14130984,42713.0,42712.0,1.05782]
[1704118809511,0.001,42713.0,42712.0,1.011]
[1704118809724,0.14130984,42713.0,42712.0,1.011]
[1704118810374,0.37452695,42713.0,42712.0,1.011]
[1704118811484,0.23421711,42713.0,42712.0,1.011]
[1704118812104,0.23421711,42713.0,42712.0,1.006]
[1704118812539,0.23921711,42713.0,42712.0,1.006]
[1704118812965,0.23821711,42713.0,42712.0,1.0]
[1704118813384,0.38336934,42713.0,42712.0,1.0]
[1704118813857,0.37836934,42713.0,42712.0,1.0]
[1704118814060,0.38236934,42713.0,42712.0,1.0]
[1704118819167,0.38336934,42713.0,42712.0,1.0]
[1704118819588,0.38736934,42713.0,42712.0,1.0]
[1704118821326,0.37736934,42713.0,42712.0,1.0]
[1704118821540,0.23721711,42713.0,42712.0,1.0]
[1704118821756,0.24121711,42713.0,42712.0,1.0]
[1704118822169,0.23721711,42713.0,42712.0,1.0]
[1704118822587,0.35125402,42713.0,42712.0,1.0]
[1704118823720,0.34925402,42713.0,42712.0,1.0]
[1704118823911,0.35125402,42713.0,42712.0,1.0]
[1704118825242,0.34925402,42713.0,42712.0,1.0]
[1704118825652,0.35125402,42713.0,42712.0,1.0]
[1704118828698,0.09000832,42713.0,42712.0,1.0]
[1704118829123,0.06200713,42713.0,42712.0,1.0]
[1704118829532,0.06000713,42713.0,42712.0,1.0]
[1704118829738,0.004,42713.0,42712.0,1.0]
[1704118829949,0.06200717,42713.0,42712.0,1.0]